Cogmind - Beta 15 @@@ ROGUE MODE // 2025.06.14 @ 16:13:11 // Winter2019/RPGLIKE Player: Jack Result: Destroyed by G-47 Trooper with Particle Gun Performance ------------- Evolutions (3) 1500 Regions Visited (7) 1400 Robots Destroyed (68) 340 Value Destroyed (2540) 2540 Prototype IDs (23) 460 Alien Tech Used (0) 0 Bonus (1857) 1857 TOTAL SCORE: 8097 Bonus ------- High Alert Combat Kills 357 Entered Garrisons 200 Used RIF Installer 1000 Aligned with FarCom 300 Cogmind --------- Core Integrity 0/700 Matter 295/300 Energy 160/160 System Corruption 3% Temperature Cool (10) Movement Flying (115) Ox1 Location -7/Garrison Parts ------- > --- POWER (1) -------- Light Nuclear Core > --- PROPULSION (2) --- VTOL Module > --- UTILITY (3) ------ (None) > --- WEAPON (4) ------- Katana Longsword +1 > --- INVENTORY (1) ---- Protomatter-57 Peak State ------------ > --- POWER ------------ Light Nuclear Core > --- PROPULSION ------- VTOL Module VTOL Module > --- UTILITY ---------- (None) > --- WEAPON ----------- PD Laser Longsword +1 > --- INVENTORY -------- (None) [Rating: 36] Favorites ----------- Power Light Nuclear Core Engine Light Ion Engine Power Core Light Nuclear Core Propulsion Flight Unit Hover Unit Gravmag System Flight Unit Flight Unit Utility Shield Generator Device Shield Generator Hackware Hacking Suite Weapon Longsword +1 Energy Gun PD Laser Ballistic Gun Assault Rifle Slashing Weapon Longsword +1 Build | -11 -10 -10 -10 -9 -8 -7 -7 ------- Run | Yrd Mat Min Exi Min Mat Fac Gar Slots Evolved 6 | 4 . . . . . 1 1 Power . | . . . . . . . . Propulsion 1 | 1 . . . . . . . Utility 2 | . . . . . . 1 1 Weapon 3 | 3 . . . . . . . Parts Attached 25 | 3 . 1 1 6 1 6 7 Power 7 | . . . . 3 . 2 2 Engine 4 | . . . . 3 . . 1 Core 3 | . . . . . . 2 1 Reactor . | . . . . . . . . Propulsion 8 | . . . . 2 . 2 4 Treads . | . . . . . . . . Leg . | . . . . . . . . Wheel . | . . . . . . . . Hover 2 | . . . . . . 2 . Flight 6 | . . . . 2 . . 4 Utility 2 | . . . . . 1 1 . Device 1 | . . . . . . 1 . Storage . | . . . . . . . . Processor . | . . . . . . . . Hackware 1 | . . . . . 1 . . Protection . | . . . . . . . . Artifact . | . . . . . . . . Weapon 8 | 3 . 1 1 1 . 1 1 Energy Gun 1 | . . . . . . . 1 Energy Cannon . | . . . . . . . . Ballistic Gun 4 | 3 . 1 . . . . . Ballistic Cannon . | . . . . . . . . Launcher . | . . . . . . . . Special Weapon . | . . . . . . . . Impact Weapon . | . . . . . . . . Slashing Weapon 3 | . . . 1 1 . 1 . Piercing Weapon . | . . . . . . . . Special Melee Weapon . | . . . . . . . . Unidentified Prototypes . | . . . . . . . . Parts Lost 5 | . . . . . . . 5 Power 1 | . . . . . . . 1 Propulsion 3 | . . . . . . . 3 Utility 1 | . . . . . . . 1 Weapon . | . . . . . . . . Highest Loss Streak 2 | . . . . . . . 2 To Critical Strikes 1 | . . . . . . . 1 Average Backups . | . . . . . . . . Power . | . . . . . . . . Propulsion . | . . . . . . . . Utility . | . . . . . . . . Weapon . | . . . . . . . . Tool/Special . | . . . . . . . . Unused Backups 1 | . . . . . . . 1 Power . | . . . . . . . . Propulsion . | . . . . . . . . Utility 1 | . . . . . . . 1 Weapon . | . . . . . . . . Tool/Special . | . . . . . . . . Average Slot Usage (%) 63 | . 37 40 31 38 63 78 56 Engine 3 | . . . . 5 12 5 . Core 6 | . . . . . . 5 9 Hover 6 | . . . . . . 6 8 Flight 11 | . . . . 13 25 16 6 Device 5 | . . . . . . 10 2 Ballistic Gun 2 | . 37 40 26 . . . . Slashing Weapon 27 | . . . 4 19 25 33 28 Peak Build Rating 36 | 3 3 4 8 15 17 25 36 Average Rating 18 | 2 3 3 5 11 14 20 21 On Entrance 9 | . 3 3 4 8 14 17 25 Naked Turns 1 | . . . 1 . . . . Heaviest Build 18 | 5 5 6 6 12 8 15 18 Greatest Support 23 | 8 8 8 8 13 13 23 23 Greatest Overweight (x) 1 | . . . . . . 1 1 Average Overweight (x) . | . . . . . . . . Largest Inventory Capacity 1 | . . . . . . . 1 Average Capacity . | . . . . . . . . Most Carried 1 | . . . . . . . 1 Average Carried . | . . . . . . . . Final Capacity 1 | . . . . . . . 1 Final Carried 1 | . . . . . . . 1 Class Distribution -------------------- 73% | Hacker-Gladiator 9% | Hacker-Sprinter 6% | Gunner 4% | Mutant 3% | Scavenger-Gladiator Dominant Class ---------------- Gunner | -10/Materials Gunner | -10/Mines Mutant | -10/Exiles Scavenger-Gladiator | -9/Mines Hacker-Gladiator | -8/Materials Hacker-Gladiator | -7/Factory Hacker-Gladiator | -7/Garrison Resources | -11 -10 -10 -10 -9 -8 -7 -7 ----------- Run | Yrd Mat Min Exi Min Mat Fac Gar Matter Collected 566 | 252 . 38 . 114 . 70 92 Remotely . | . . . . . . . . Salvage Created 3329 | 98 . . . 380 122 795 1934 Parts 150 | 3 . . . 28 8 27 84 Haulers Intercepted 1 | . . . . . 1 . . Recyclers Shooed 1 | . . . . . . 1 . Parts Field Recycled . | . . . . . . . . Retrieved Matter . | . . . . . . . . Parts Self-Destructed . | . . . . . . . . Prevented . | . . . . . . . . Kills | -11 -10 -10 -10 -9 -8 -7 -7 ------- Run | Yrd Mat Min Exi Min Mat Fac Gar Combat Hostiles Destroyed 53 | . . . . 9 2 8 34 Melee 52 | . . . . 9 2 8 33 Classes Destroyed 16 | 2 . . . 5 2 5 2 Worker 3 | . . . . 3 . . . Builder 1 | . . . . 1 . . . Tunneler 3 | 1 . . . 2 . . . Hauler 1 | . . . . . 1 . . Recycler 4 | 1 . . . . . 3 . Mechanic 1 | . . . . . . 1 . Operator 1 | . . . . . . 1 . Watcher 1 | . . . . . . 1 . Swarmer 18 | . . . . 6 . . 12 Grunt 16 | . . . . 2 1 4 9 Brawler 4 | . . . . . . . 4 Duelist 2 | . . . . 1 . . 1 Sentry 5 | . . . . . 1 1 3 Hunter 3 | . . . . . . 1 2 Programmer 3 | . . . . . . 2 1 Behemoth 2 | . . . . . . . 2 Best Kill Streak 7 | 2 . . . 7 3 5 3 Combat Bots Only 6 | . . . . 6 2 3 3 Max Kills in Single Turn 1 | 1 . . . 1 1 1 1 Gunslinging . | . . . . . . . . Exploded . | . . . . . . . . Melee 1 | . . . . 1 1 1 1 Uniques/NPCs Destroyed . | . . . . . . . . Combat | -11 -10 -10 -10 -9 -8 -7 -7 -------- Run | Yrd Mat Min Exi Min Mat Fac Gar Hostile Shots Fired 354 | . . . . 17 9 39 289 Missed 117 | . . . . 4 4 20 89 Hits 237 | . . . . 13 5 19 200 Melee 8 | . . . . 2 . . 6 Projectile 229 | . . . . 11 5 19 194 Critical Strikes 8 | . . . . 1 . 1 6 Damage Taken 3032 | . . . . 160 71 151 2650 Core 2610 | . . . . 158 65 119 2268 Absorbed by Shields 285 | . . . . . . 59 226 Redirected to Core 1358 | . . . . 8 21 101 1228 Ignored by Resistances 389 | . . . . . . 9 380 Core Remaining (%) 94 | 100 . . . 84 99 . . Volleys Fired 12 | 8 4 . . . . . . Largest 3 | 3 3 . . . . . . Hottest 60 | 60 60 . . . . . . Shots Fired 39 | 24 12 . . . . . 3 Gun 39 | 24 12 . . . . . 3 Cannon . | . . . . . . . . Launcher . | . . . . . . . . Special . | . . . . . . . . Kinetic 36 | 24 12 . . . . . . Thermal 3 | . . . . . . . 3 Explosive . | . . . . . . . . Electromagnetic . | . . . . . . . . Robot Hit Streak 4 | 4 4 . . . . . 4 Robot Miss Streak 3 | 1 3 . . . . . 3 Penetration Max . | . . . . . . . . Secondary Targets . | . . . . . . . . Autonomous 7 | . . . . . . . 7 Shots Hit Robots 226 | 6 6 . . 23 8 32 151 Core Hits 91 | 4 1 . . 13 3 14 56 Critical Kills . | . . . . . . . . Critical Parts Destroyed . | . . . . . . . . Critical Strikes 22 | . . . . 4 . 2 16 Sever 22 | . . . . 4 . 2 16 Melee Attacks 327 | . . . 1 34 13 48 231 Impact . | . . . . . . . . Slashing 327 | . . . 1 34 13 48 231 Piercing . | . . . . . . . . Sneak Attacks 23 | . . . . 7 2 6 8 Combat Hostiles 5 | . . . . 1 1 . 3 Follow-up Attacks 26 | . . . . . 1 4 21 Damage Inflicted 11493 | 69 71 . . 1129 438 1765 8021 Guns 306 | 69 71 . . . . . 166 Cannons . | . . . . . . . . Explosions . | . . . . . . . . Melee 11187 | . . . . 1129 438 1765 7855 Ramming . | . . . . . . . . Kinetic 140 | 69 71 . . . . . . Thermal 166 | . . . . . . . 166 Explosive . | . . . . . . . . Electromagnetic . | . . . . . . . . Impact . | . . . . . . . . Slashing 11187 | . . . . 1129 438 1765 7855 Piercing . | . . . . . . . . Highest Corruption 3 | . . . . . . . 3 Average Corruption 2 | . . . . . . . 2 Corruption Purged . | . . . . . . . . Corruption Blocked . | . . . . . . . . Effects 14 | . . . . . . . 14 Message Errors 3 | . . . . . . . 3 Matter Fused 2 | . . . . . . . 2 Heat Flow Errors 6 | . . . . . . . 6 Energy Discharges 3 | . . . . . . . 3 Overload Shots . | . . . . . . . . Overflow Damage 757 | . . . . 64 . 318 375 Projectiles . | . . . . . . . . Explosions . | . . . . . . . . Melee 757 | . . . . 64 . 318 375 Knockbacks . | . . . . . . . . Impact . | . . . . . . . . Kinetic . | . . . . . . . . Secondary . | . . . . . . . . Self-Inflicted Damage . | . . . . . . . . Shots . | . . . . . . . . Rammed . | . . . . . . . . Targets Rammed . | . . . . . . . . Kicked . | . . . . . . . . Crushed . | . . . . . . . . Highest Temperature 492 | . . . . . . . 492 Average Temperature 156 | . . . . . . . 156 Received Heat Transfer 789 | . . . . 12 27 60 690 Effects 1 | . . . . . . . 1 Energy Bleed 1 | . . . . . . . 1 Siege Activations . | . . . . . . . . Martial Activations . | . . . . . . . . Shielding Activations . | . . . . . . . . Robots Disrupted . | . . . . . . . . Combat Hostiles . | . . . . . . . . Robots Corrupted . | . . . . . . . . Combat Hostiles . | . . . . . . . . Parts Fried . | . . . . . . . . Impact Corruptions . | . . . . . . . . Robots Melted . | . . . . . . . . Combat Hostiles . | . . . . . . . . Parts Melted . | . . . . . . . . Heat Transferred 150 | . . . . . . . 150 Parts Sabotaged . | . . . . . . . . Parts Stolen . | . . . . . . . . Parts Stripped . | . . . . . . . . Power Chain Reactions . | . . . . . . . . Alert | -11 -10 -10 -10 -9 -8 -7 -7 ------- Run | Yrd Mat Min Exi Min Mat Fac Gar Maximum Alert Level 4 | . . . . 1 . . 4 Low Security (%) 68 | 100 100 100 . 83 100 100 25 Level 1 6 | . . . . 16 . . 12 Level 2 13 | . . . . . . . 33 Level 3 10 | . . . . . . . 26 Level 4 1 | . . . . . . . 2 Level 5 . | . . . . . . . . High Security . | . . . . . . . . Max Security . | . . . . . . . . Peak Influence 1137 | 5 . . . 205 157 128 1137 Initial 76 | . . . . . 76 62 32 Average 233 | 1 . . . 153 122 33 502 Influence Increases 1915 | 10 . . . 275 112 343 1175 Destroy 0b10 Robot/C 1060 | . . . . 180 40 160 680 Destroy 0b10 Robot/NC 115 | 10 . . . 30 5 30 40 Destroy Leader 124 | . . . . 30 12 42 40 Allied During Kill 1 | . . . . . . . 1 Successful Hack 52 | . . . . . 5 33 14 Disable Machine 75 | . . . . . . 15 60 Anti-Garrison Action 50 | . . . . . . . 50 Destroy Structure 153 | . . . . 5 5 3 140 Partial Spotted 60 | . . . . . 45 15 . Lose Combat Pursuer 225 | . . . . 30 . 45 150 Influence Decreases 778 | 10 . . . 80 169 434 85 Entered New Map 210 | . . . . . 119 76 15 Time Decay 498 | 10 . . . 80 50 358 . Lost Part 50 | . . . . . . . 50 Lost Ally 20 | . . . . . . . 20 Squads Dispatched 5 | . . . . . 1 4 . Investigation 2 | . . . . . 1 1 . Extermination 2 | . . . . . . 2 . Reinforcement 1 | . . . . . . 1 . Assault . | . . . . . . . . Garrison . | . . . . . . . . Intercept . | . . . . . . . . Searches Triggered . | . . . . . . . . Construction Impeded . | . . . . . . . . Haulers Reinforced . | . . . . . . . . Active Scanning Responses . | . . . . . . . . Cargo Convoy Interrupts . | . . . . . . . . Stealth | -11 -10 -10 -10 -9 -8 -7 -7 --------- Run | Yrd Mat Min Exi Min Mat Fac Gar Distress Signals 1 | . . . . . 1 . . Communications Jammed . | . . . . . . . . Distress Signals . | . . . . . . . . Times Spotted 74 | . 1 . . 11 4 16 42 Peak Tracking Total 9 | . 1 . 9 4 2 5 6 Tactical Retreats 10 | . . . . 2 . 1 7 Traps | -11 -10 -10 -10 -9 -8 -7 -7 ------- Run | Yrd Mat Min Exi Min Mat Fac Gar Traps Triggered 2 | . . . . . . 1 1 Indirectly . | . . . . . . . . Trap Hack Attempts . | . . . . . . . . Triggered . | . . . . . . . . Disarmed . | . . . . . . . . Reprogrammed . | . . . . . . . . Reused . | . . . . . . . . Traps Extracted . | . . . . . . . . Installed . | . . . . . . . . Triggered . | . . . . . . . . Machines | -11 -10 -10 -10 -9 -8 -7 -7 ---------- Run | Yrd Mat Min Exi Min Mat Fac Gar Machines Disabled 7 | . . . 1 . . 1 5 Max in Single Turn 1 | . . . 1 . . 1 1 Garrison Relay 1 | . . . . . . . 1 Machines Repaired . | . . . . . . . . Machines Dismantled . | . . . . . . . . Machines Sabotaged . | . . . . . . . . Overloaded Fab Kills . | . . . . . . . . Hacking | -11 -10 -10 -10 -9 -8 -7 -7 --------- Run | Yrd Mat Min Exi Min Mat Fac Gar Machines Accessed 8 | . . . 1 . 2 4 1 Terminals 5 | . . . . . 2 2 1 Fabricators 1 | . . . . . . 1 . Repair Stations . | . . . . . . . . Recycling Units . | . . . . . . . . Scanalyzers . | . . . . . . . . Garrison Access 1 | . . . . . . 1 . Total Hacks 16 | . . . 1 . 6 8 1 Successful 11 | . . . 1 . 4 5 1 Failed 5 | . . . . . 2 3 . Catastrophic 1 | . . . . . . 1 . Database Lockouts . | . . . . . . . . Manual 12 | . . . 1 . 6 4 1 Terminals 11 | . . . . . 6 4 1 Fabricators 3 | . . . . . . 3 . Repair Stations . | . . . . . . . . Recycling Units . | . . . . . . . . Scanalyzers . | . . . . . . . . Garrison Access 1 | . . . . . . 1 . Terminal Hacks 8 | . . . 1 . 4 2 1 Part Schematic 4 | . . . . . 3 1 . Level Access Points 1 | . . . . . 1 . . Fabricator Index 1 | . . . . . . 1 . Garrison Registry 1 | . . . . . . . 1 Proto ID Catalog 1 | . . . 1 . . . . Fabricator Hacks 2 | . . . . . . 2 . Load Schematic 1 | . . . . . . 1 . Build 1 | . . . . . . 1 . Repair Station Hacks . | . . . . . . . . Recycling Unit Hacks . | . . . . . . . . Scanalyzer . | . . . . . . . . Garrison Access Hacks 1 | . . . . . . 1 . Unlock Access 1 | . . . . . . 1 . Unauthorized Hacks . | . . . . . . . . Terminals . | . . . . . . . . Fabricators . | . . . . . . . . Repair Stations . | . . . . . . . . Recycling Units . | . . . . . . . . Scanalyzers . | . . . . . . . . Garrison Access . | . . . . . . . . Data Cores Recovered . | . . . . . . . . Used . | . . . . . . . . Hacking Detections 7 | . . . . . 2 4 1 Full Trace Events 2 | . . . . . 1 1 . Feedback Events . | . . . . . . . . Feedback Blocked . | . . . . . . . . Robot Schematics Acquired . | . . . . . . . . Robots Built . | . . . . . . . . Authchips . | . . . . . . . . Time . | . . . . . . . . Total Robot Build Rating . | . . . . . . . . Part Schematics Acquired 4 | . . . . . 3 1 . Parts Built 2 | . . . . . . 2 . Authchips . | . . . . . . . . Time 31 | . . . . . . 31 . Total Part Build Rating 4 | . . . . . . 4 . Parts Repaired . | . . . . . . . . Time . | . . . . . . . . Parts Recycled . | . . . . . . . . Recycled Matter . | . . . . . . . . Retrieved Matter . | . . . . . . . . Retrieved Components . | . . . . . . . . Parts Scanalyzed . | . . . . . . . . Part Schematics Acquired . | . . . . . . . . Parts Damaged . | . . . . . . . . Bothacking | -11 -10 -10 -10 -9 -8 -7 -7 ------------ Run | Yrd Mat Min Exi Min Mat Fac Gar Used RIF Installer 2 | . . . . . . . 2 Coupler Efficiency 1 | . . . . . . . 1 Robots Hacked . | . . . . . . . . Non-combat . | . . . . . . . . Combat . | . . . . . . . . Robot Hacks Applied . | . . . . . . . . Relay Couplers Released 2 | . . . . . . . 2 Machine Destruction 2 | . . . . . . . 2 Fabnet Peak Effective % . | . . . . . . . . Robots Rewired 1 | . . . . . . . 1 Allies Hacked . | . . . . . . . . Hacks Repelled . | . . . . . . . . Allies | -11 -10 -10 -10 -9 -8 -7 -7 -------- Run | Yrd Mat Min Exi Min Mat Fac Gar Total Allies 1 | . . . . . . . 1 Largest Group 1 | . . . . . . . 1 Highest-Rated Group 16 | . . . . . . . 16 Highest-Rated Ally 16 | . . . . . . . 16 Total Orders . | . . . . . . . . Ally Attacks 7 | . . . . . . . 7 Total Damage 72 | . . . . . . . 72 Kills . | . . . . . . . . Allies Corrupted . | . . . . . . . . Allies Melted . | . . . . . . . . Intel | -11 -10 -10 -10 -9 -8 -7 -7 ------- Run | Yrd Mat Min Exi Min Mat Fac Gar Active Infowar (turns) . | . . . . . . . . Robot Analysis Total . | . . . . . . . . Derelict Logs Recovered . | . . . . . . . . Drone Launches . | . . . . . . . . Drone Recoveries . | . . . . . . . . Exploration | -11 -10 -10 -10 -9 -8 -7 -7 ------------- Run | Yrd Mat Min Exi Min Mat Fac Gar Turns Passed 2913 | 51 56 22 120 165 103 1258 1138 Spaces Moved 2299 | 44 83 41 213 172 171 631 944 Core 433 | 44 83 41 213 19 . . 33 Treads . | . . . . . . . . Legs . | . . . . . . . . Wheels . | . . . . . . . . Hover 731 | . . . . . . 174 557 Flight 1135 | . . . . 153 171 457 354 Fastest Speed 32 | 50 50 50 50 37 37 37 32 Average Speed 48 | 50 50 50 50 38 37 43 54 Slowest Speed 120 | 50 50 50 50 50 37 120 115 Overloaded Moves . | . . . . . . . . Propulsion Burnouts . | . . . . . . . . Robots Hopped . | . . . . . . . . Potential Cave-ins . | . . . . . . . . Cave-ins Triggered . | . . . . . . . . Exploration Rate (%) 31 | 4 21 5 62 45 19 21 73 Regions Visited 7 Branch Regions 3 Pre-discovered Areas . | . . . . . . . . Known Exits Taken 2 | . . . . . 1 1 . Unknown Exits Taken 5 | 1 1 1 1 1 . . . Scrap Searched 1 | . . 1 . . . . . Spaces Dug 38 | . . . . 5 5 3 25 Terrain Destroyed 38 | . . . . 5 5 3 25 Melee 38 | . . . . 5 5 3 25 Projectile . | . . . . . . . . AOE . | . . . . . . . . Terrain Rammed . | . . . . . . . . Walls Destroyed . | . . . . . . . . Machines Disabled . | . . . . . . . . Actions | -11 -10 -10 -10 -9 -8 -7 -7 --------- Run | Yrd Mat Min Exi Min Mat Fac Gar Total 3763 | 54 88 41 226 229 196 1571 1358 Wait 1005 | . 2 . 8 14 6 864 111 Move 2293 | 43 82 40 212 171 170 631 944 Hop . | . . . . . . . . Pick Up 3 | . . . . . . . 3 Fast Attach 20 | 3 . 1 1 5 1 3 6 Attach . | . . . . . . . . Detach . | . . . . . . . . Swap 8 | . . . . 2 . 3 3 Drop 16 | . . . 4 1 . 3 8 Fire 12 | 8 4 . . . . . . Melee 277 | . . . 1 32 12 40 192 Ram . | . . . . . . . . Kick . | . . . . . . . . Crush . | . . . . . . . . Escape Stasis 31 | . . . . . . 18 13 Rewire 3 | . . . . . . . 3 Trap . | . . . . . . . . Miscellaneous 95 | . . . . 4 7 9 75 Route ------- -11/Scrapyard -10/Materials -10/Mines -10/Exiles (discovered 2 exits: [*Min x2]) -9/Mines -8/Materials (discovered 3 exits: *Fac x3) -7/Factory -7/Garrison (discovered 3 exits: [*Fac x3]) History --------- Turn | Location | Event 2 | -11/Scrapyard | Upgraded with Propulsion slot (x1) 2 | -11/Scrapyard | Upgraded with Weapon slot (x3) 3 | -11/Scrapyard | Discovered new exit (range 16) 52 | -11/Scrapyard | Entered Materials 74 | -10/Materials | Discovered new exit (range 13) 108 | -10/Materials | Entered Mines 119 | -10/Mines | Deemed a non-threat by the Exiles lab entrance 120 | -10/Mines | Discovered new exit (range 5) 130 | -10/Mines | Entered Exiles 138 | -10/Exiles | Discovered new exit (range 15) 143 | -10/Exiles | Met 8R-AWN 152 | -10/Exiles | Met EX-HEX 167 | -10/Exiles | Met EX-BIN 173 | -10/Exiles | Aligned with FarCom system 174 | -10/Exiles | Given EX-Vault access code 194 | -10/Exiles | Opened EX-Vault 200 | -10/Exiles | Found Longsword +1 210 | -10/Exiles | Warned to stay clear of 0b10 Research branches 225 | -10/Exiles | Met EX-DEC 231 | -10/Exiles | Attacked by the Exiles 244 | -10/Exiles | Discovered new exit (range 14) 250 | -10/Exiles | Left Exiles lab with Longsword +1 250 | -10/Exiles | Entered Mines 252 | -9/Mines | Reached level 2 411 | -9/Mines | Discovered new exit (range 5) 415 | -9/Mines | Entered Materials 417 | -8/Materials | Reached level 3 503 | -8/Materials | Identified exit to Factory 518 | -8/Materials | Entered Factory 520 | -7/Factory | Reached level 4 614 | -7/Factory | Fabricated Shield Generator? 681 | -7/Factory | Reached level 5 725 | -7/Factory | Build established: Hacker-Gladiator 753 | -7/Factory | Upgraded with Utility slot (x1) 1776 | -7/Factory | Identified exit to Garrison 1776 | -7/Factory | Entered Garrison 1834 | -7/Garrison | Spotted B-75 Beast 1834 | -7/Garrison | Spotted B-75 Beast 1882 | -7/Garrison | Reached level 6 1899 | -7/Garrison | Upgraded with Utility slot (x1) 1925 | -7/Garrison | Destroyed B-75 Beast 1941 | -7/Garrison | Core integrity fell below 50% 1954 | -7/Garrison | Destroyed B-75 Beast 2036 | -7/Garrison | Triggered checkpoint 2038 | -7/Garrison | Triggered checkpoint 2183 | -7/Garrison | Reached level 7 2309 | -7/Garrison | Triggered checkpoint 2333 | -7/Garrison | Discovered new exit (range 52) 2333 | -7/Garrison | Discovered new exit (range 12) 2333 | -7/Garrison | Discovered new exit (range 72) 2373 | -7/Garrison | Installed Relay Interface Framework 2406 | -7/Garrison | Triggered checkpoint 2418 | -7/Garrison | Triggered checkpoint 2453 | -7/Garrison | Core integrity fell below 20% 2584 | -7/Garrison | Triggered checkpoint 2597 | -7/Garrison | Reached level 8 2638 | -7/Garrison | Expanded RIF knowledge: Coupler Efficiency 2672 | -7/Garrison | Triggered checkpoint 2677 | -7/Garrison | Garrison Relay disabled 2800 | -7/Garrison | Triggered checkpoint 2874 | -7/Garrison | Reached level 9 2914 | -7/Garrison | Destroyed by G-47 Trooper with Particle Gun Last Messages --------------- B-48 Gladiator destroyed. Acquired 15 matter. Overheating: Energy bleed (-21). :CYIK6TAQ&F2BE=R IQ96SQW> / Dropped PD Laser. Acquired Katana. Sneak attack on A-27 Freighter. A-27 Freighter Com. Battery severed. Sneak attack on A-27 Freighter. Longsword +1 follow-up attack on A-27 Freighter. Sneak attack on A-27 Freighter. Critical hit (Burn: +37). Katana follow-up attack on G-50 Soldier. Reached level 9. G-50 Soldier destroyed. System corrupted: Heat flow error (+278). VTOL Module destroyed. Acquired Protomatter-57. Destroyed Lgt. Nuclear Core. G-47 Trooper destroyed. Map ----- +----------------------------------------------------+ | ????????# #??????# #???# #??# #???# #??????# #? | | ######### #####??# ##### #### #???# #???#### ## | | "" ## #??# " " #???#%##??# + + | | #??# #####^^#### #???# %#??# ## ## | | "" ## #??# #???#^^#??# #???# #####"## #? | | ##### " #### #???# #??# #???#=## =%!## #? | | ????#"" """ #???# #??# #?###"## % ## #? | | ????#" " ######???# ####"### ## | | ????#" #????????# | | ????#" " #????????# | | ????#""""" #????????########### ## ## ## | | ????#####"#####????????????????### ## ## %## | | ????????#"#????????????????????#*== *%* | | ????????###????????????????????#%= [ [[ | | ?????????#######?????????????###%= | | ?????????# # #?????????????# +=%= | | ########## # #?????????????# ### ## ## ## | | """" ## #????????###### ### ## " ## ## | | " ##????????# + ^ "%" | | ### ###????????# " ^ " | | " ################# ####### ^ ## | | " """ #?????# ##""""## ##? | | " ################# #?????# ## ## #?? | | #???????##!!%!### ####### ##+#####^ #?? | | #???????#%=%==![=g + + #???#^^### | | #???????#!!!** ##@%####### ####???#^ + | | ### #####???????# !!=![## %#?????# ##?????# ### | | ??# #???????????##%!!/##= #?????# T#?????#^^#?? | | ?##+####################;;+####### ##?????# ### | | ?# #??????# | | ?# #??????# | | ?# *=% #??????###### | | ?# < ####################!%#######+###???????????? | | ?# #??????????????????#=!###???# #?????????????? | | ?#####???############???# ##### #?????????????? | | ?????????#""""""""""#???# " #?????????????? | | ?????????#"""!!!!!!"##### ##### #?????????????? | | ?????????#"" + ###??## ####??????????? | | ?????????#"! + #????## #??????????? | | ?????????#"! ##### #????# ##??????????? | | ?????????#"! #?###^^#????# #??????????? | | ?????????#"! #?#"#^^#????## # #??????????? | | ?????????#"" #?#" #????### #??????????? | | ?????????#"""!!!!!!"#?#" #????#######??????????? | | ?????????#""""""""""#?#" #?????????????????????? | | ?????????############?#"# #?????????????????????? | | ??????????????????????### #?????????????????????? | | ????????????????????????####?????????????????????? | | ?????????????????????????????????????????????????? | | ?????????????????????????????????????????????????? | +----------------------------------------------------+ Best States ------------- Heat Dissipation 25 Energy Generation 15 Energy Capacity 265 Matter Stores 300 Matter Capacity 300 Sight Range 16 Terrain Scan Density 10 Resistance: KI 10 Resistance: TH 10 Evasion (%) 63 Offensive Hacking 40 Item Schematics ----------------- Katana | -8/Materials | Hacked Actuator Array | -8/Materials | Hacked Shield Generator | -8/Materials | Hacked Microactuators | -7/Factory | Hacked Robot Schematics ------------------ None Fabricated ------------ Shield Generator | x2 | -7/Factory Repaired ---------- Nothing Alien Tech Used ----------------- None Achievements -------------- None Challenges ------------ None RPGLIKE | -11 -10 -10 -10 -9 -8 -7 -7 --------- Run | Yrd Mat Min Exi Min Mat Fac Gar Levels Raised 8 | . . . . 1 1 2 4 XP Earned 15376 | 3000 . 500 350 1550 1750 2735 5491 XP Spent 9810 | 3000 . . . . 3000 2700 1110 Upgrades 20 | 5 . . . . 5 6 4 Propulsion Slot 1 | 1 . . . . . . . Utility Slot 2 | . . . . . . 1 1 Weapon Slot 3 | 3 . . . . . . . Core Integrity 2 | . . . . . . . 2 Mass Support 1 | 1 . . . . . . . Inventory Capacity 1 | . . . . . . . 1 Hack Attack % 6 | . . . . . 5 1 . KI Resistance % 2 | . . . . . . 2 . TH Resistance % 2 | . . . . . . 2 . Protomatter Created 781 | . . . . 35 52 66 628 Integrity Restored 2008 | . . . . 63 156 185 1604 Core 1908 | . . . . 63 156 123 1566 Parts 100 | . . . . . . 62 38 Protomatter Decayed 91 | . . . . 14 . 2 75 Game ------ Seed MediumLightExoskeleton Manual? 0 Play Time 00:27:30 Cumulative 292.0 hours Start 2025.06.13 @ 17:27:36 End 2025.06.14 @ 16:13:11 Sessions 2 Manual Loads 0 Difficulty Rogue Special Mode Winter2019/RPGLIKE Game No. 287 Rogue 98 Adventurer 177 Explorer 12 Win Type - Total 65 Types 19/1/16/2/12/0/4/5/0/6 Lore% 57 Gallery% 56 Achievement% 72 Wizard Run 0 Options --------- Layout 0 ASCII 0 Keyboard 0 Movement Numpad Keybinds 0 Fullscreen 2 Font 12/Smallcaps Map View 83x54 Zoom Use 0% Tactical HUD 0 Map Filters NONE Filters NONE Steam 1 RUN: fa605532-b8bf-4435-af00-6cadeab4d7c6